[Event "Czech Youth U12 Boys 2024"]
[Site "Kouty nad Desnou"]
[Date "2024.03.16"]
[Round "9.1"]
[White "Velim, Vojtech"]
[Black "Honcharov, Makar"]
[Result "1/2-1/2"]
[ECO "A48"]
[WhiteElo "1889"]
[BlackElo "1872"]
[Annotator "NA RC"]
[PlyCount "63"]
[EventDate "2024.03.10"]
[EventType "swiss"]
[EventCountry "CZE"]
[SourceTitle "playchess.com"]
[Source "ChessBase"]
[SourceQuality "1"]
[TimeControl "40/5400+30:1800+30"]

1. Nf3 {[%emt 0:00:05]} Nf6 {[%emt 0:00:04]} 2. d4 {[%emt 0:00:04]} g6 {[%emt 0:00:12]} 3. c4 {[%emt 0:00:05]} Bg7 {[%emt 0:00:05]} 4. Nc3 {[%emt 0:00:07]} O-O {[%emt 0:00:10]} 5. Bg5 {[%emt 0:00:05]} d6 {[%emt 0:00:14]} 6. e3 {[%emt 0:00:08]} h6 {[%emt 0:01:01]} 7. Bh4 {[%emt 0:00:05]} g5 {[%emt 0:00:08]} 8. Bg3 {[%emt 0:00:04]} Nh5 {[%emt 0:00:06]} 9. Bd3 {[%emt 0:00:29]} Nxg3 {[%emt 0:00:31]} 10. hxg3 {[%emt 0:00:26]} e5 {[%emt 0:00:31]} 11. dxe5 {[%emt 0:18:32]} dxe5 {[%emt 0:00:27]} 12. Be4 {[%emt 0:00:12]} c6 {[%emt 0:03:03]} 13. Qe2 {[%emt 0:05:42]} f5 {[%emt 0:00:58]} 14. Bc2 {[%emt 0:00:04]} Be6 {[%emt 0:02:18]} 15. Rd1 {[%emt 0:19:28]} Qe7 {[%emt 0:05:04]} 16. a3 {[%emt 0:10:13]} Qf7 {[%emt 0:04:11]} 17. Nd2 {[%emt 0:03:15]} Nd7 {[%emt 0:04:50]} 18. g4 {[%emt 0:08:00]} fxg4 {[%emt 0:03:09]} 19. Nce4 {[%emt 0:00:16]} Nf6 {[%emt 0:14:36]} 20. Nxf6+ {[%emt 0:05:10]} Qxf6 {[%emt 0:00:29]} 21. Ne4 {[%emt 0:01:13]} Qe7 {[%emt 0:00:45]} 22. c5 {[%emt 0:03:31]} Bf5 {[%emt 0:04:38]} 23. Rd6 {[%emt 0:04:40]} Rad8 {[%emt 0:11:10]} 24. Qc4+ {[%emt 0:00:52]} Kh7 {[%emt 0:19:50]} 25. Ng3 {[%emt 0:01:55]} Bxc2 {[%emt 0:01:40]} 26. Qxc2+ {[%emt 0:00:06]} Kg8 {[%emt 0:02:10]} 27. Nf5 {[%emt 0:03:16]} Rxf5 {[%emt 0:05:01]} 28. Qxf5 {[%emt 0:03:00]} Rxd6 {[%emt 0:00:37]} 29. cxd6 {[%emt 0:00:06]} Qxd6 {[%emt 0:00:04]} 30. Qc8+ {[%emt 0:00:19]} Kh7 {[%emt 0:00:38]} 31. Qf5+ {[%emt 0:00:29]} Kg8 {[%emt 0:00:38]} 32. Qc8+ 1/2-1/2

[Event "Czech Youth U12 Boys 2024"]
[Site "Kouty nad Desnou"]
[Date "2024.03.16"]
[Round "9.2"]
[White "Policar, Martin"]
[Black "Sochor, Vaclav"]
[Result "0-1"]
[ECO "A06"]
[WhiteElo "1758"]
[BlackElo "1826"]
[Annotator "NA RC"]
[PlyCount "84"]
[EventDate "2024.03.10"]
[EventType "swiss"]
[EventCountry "CZE"]
[SourceTitle "playchess.com"]
[Source "ChessBase"]
[SourceQuality "1"]
[TimeControl "40/5400+30:1800+30"]

1. Nf3 {[%emt 0:00:20]} d5 {[%emt 0:00:30]} 2. g3 {[%emt 0:00:20]} Nf6 {[%emt 0:01:36]} 3. Bg2 {[%emt 0:00:31]} c5 {[%emt 0:00:55]} 4. O-O {[%emt 0:00:23]} Nc6 {[%emt 0:00:53]} 5. d4 {[%emt 0:00:14]} e6 {[%emt 0:01:25]} 6. c4 {[%emt 0:00:28]} Be7 {[%emt 0:01:51]} 7. Nc3 {[%emt 0:00:53]} O-O {[%emt 0:01:46]} 8. dxc5 {[%emt 0:01:03]} Bxc5 {[%emt 0:03:16]} 9. cxd5 {[%emt 0:02:06]} Nxd5 {[%emt 0:01:27]} 10. Nxd5 {[%emt 0:00:11]} exd5 {[%emt 0:04:05]} 11. Qd3 {[%emt 0:12:25]} h6 {[%emt 0:10:55]} 12. Rd1 {[%emt 0:06:00]} Be6 {[%emt 0:03:39]} 13. Be3 {[%emt 0:04:54]} Nb4 {[%emt 0:07:46]} 14. Qc3 {[%emt 0:03:48]} Bxe3 {[%emt 0:00:25]} 15. Qxb4 {[%emt 0:00:50]} Qb6 {[%emt 0:05:41]} 16. Qxb6 {[%emt 0:02:02]} Bxb6 {[%emt 0:00:34]} 17. Rd3 {[%emt 0:07:49]} Rfd8 {[%emt 0:07:02]} 18. Rad1 {[%emt 0:01:03]} Rd6 {[%emt 0:10:39]} 19. Nd4 {[%emt 0:08:06]} a6 {[%emt 0:05:59]} 20. Nc2 {[%emt 0:11:03]} a5 {[%emt 0:14:39]} 21. Bxd5 {[%emt 0:07:19]} Bxd5 {[%emt 0:00:28]} 22. Rxd5 {[%emt 0:00:32]} Rxd5 {[%emt 0:00:27]} 23. Rxd5 {[%emt 0:00:07]} Rc8 {[%emt 0:00:35]} 24. Na3 {[%emt 0:03:51]} Rc1+ {[%emt 0:04:17]} 25. Kg2 {[%emt 0:00:25]} Bc5 {[%emt 0:01:59]} 26. Rd3 {[%emt 0:15:06]} Ra1 {[%emt 0:05:19]} 27. Rb3 {[%emt 0:05:39]} a4 {[%emt 0:01:29]} 28. Rc3 {[%emt 0:02:55]} Bb4 {[%emt 0:00:31]} 29. Nc2 {[%emt 0:01:30]} Bxc3 {[%emt 0:00:11]} 30. Nxa1 {[%emt 0:00:03]} Bxb2 {[%emt 0:00:07]} 31. Nc2 {[%emt 0:00:06]} f6 {[%emt 0:00:41]} 32. Kf3 {[%emt 0:01:05]} Kf7 {[%emt 0:00:19]} 33. Ke4 {[%emt 0:01:43]} Ke6 {[%emt 0:02:02]} 34. Nb4 {[%emt 0:01:10]} f5+ {[%emt 0:00:29]} 35. Kd3 {[%emt 0:00:33]} Kd6 {[%emt 0:00:59]} 36. Kc4 {[%emt 0:00:14]} g5 {[%emt 0:01:03]} 37. f3 {[%emt 0:00:43]} a3 {[%emt 0:01:48]} 38. Nd3 {[%emt 0:00:30]} Bg7 {[%emt 0:00:54]} 39. e4 {[%emt 0:01:13]} g4 {[%emt 0:00:18]} 40. exf5 {[%emt 0:00:30]} gxf3 {[%emt 0:00:06]} 41. g4 {[%emt 0:30:29]} Bf6 {[%emt 0:30:17]} 42. Nc5 {[%emt 0:00:46]} Bh4 {[%emt 0:00:19]} 0-1

[Event "Czech Youth U12 Boys 2024"]
[Site "Kouty nad Desnou"]
[Date "2024.03.16"]
[Round "9.3"]
[White "Kolar, Edvard"]
[Black "Zrust, Lukas"]
[Result "1-0"]
[ECO "A50"]
[WhiteElo "1759"]
[BlackElo "1893"]
[Annotator "NA RC"]
[PlyCount "55"]
[EventDate "2024.03.10"]
[EventType "swiss"]
[EventCountry "CZE"]
[SourceTitle "playchess.com"]
[Source "ChessBase"]
[SourceQuality "1"]
[TimeControl "40/5400+30:1800+30"]

1. d4 {[%emt 0:00:01]} Nf6 {[%emt 0:00:17]} 2. c4 {[%emt 0:00:11]} g6 {[%emt 0:00:13]} 3. h4 {[%emt 0:00:03]} h5 {[%emt 0:01:18]} 4. Nc3 {[%emt 0:00:50]} d5 {[%emt 0:00:55]} 5. Bg5 {[%emt 0:00:43]} c6 {[%emt 0:01:57]} 6. e3 {[%emt 0:07:46]} Bf5 {[%emt 0:04:22]} 7. Be2 {[%emt 0:05:21]} Bg7 {[%emt 0:03:14]} 8. Nf3 {[%emt 0:03:11]} O-O {[%emt 0:00:51]} 9. Ne5 {[%emt 0:00:34]} Ne4 {[%emt 0:07:03]} 10. g4 {[%emt 0:02:43]} hxg4 {[%emt 0:04:28]} 11. Nxg4 {[%emt 0:01:06]} Nxg5 {[%emt 0:06:11]} 12. hxg5 {[%emt 0:01:15]} dxc4 {[%emt 0:09:58]} 13. Nh6+ {[%emt 0:01:51]} Bxh6 {[%emt 0:00:22]} 14. Rxh6 {[%emt 0:00:39]} Kg7 {[%emt 0:02:58]} 15. Bg4 {[%emt 0:12:57]} Bxg4 {[%emt 0:01:39]} 16. Qxg4 {[%emt 0:00:10]} Rh8 {[%emt 0:00:24]} 17. Ke2 {[%emt 0:02:53]} Rxh6 {[%emt 0:12:01]} 18. gxh6+ {[%emt 0:00:08]} Kh7 {[%emt 0:02:04]} 19. Ne4 {[%emt 0:04:16]} Qd7 {[%emt 0:14:27]} 20. Ng5+ {[%emt 0:00:29]} Kg8 {[%emt 0:01:05]} 21. h7+ {[%emt 0:00:15]} Kg7 {[%emt 0:00:28]} 22. h8=Q+ {[%emt 0:00:15]} Kxh8 {[%emt 0:00:27]} 23. Qh4+ {[%emt 0:00:07]} Kg7 {[%emt 0:00:56]} 24. Qh7+ {[%emt 0:00:12]} Kf6 {[%emt 0:00:03]} 25. Qxf7+ {[%emt 0:00:07]} Kxg5 {[%emt 0:00:19]} 26. Qf4+ {[%emt 0:00:09]} Kh5 {[%emt 0:01:05]} 27. Rh1+ {[%emt 0:00:11]} Qh3 {[%emt 0:00:25]} 28. Rxh3# {[%emt 0:00:08]} 1-0

[Event "Czech Youth U12 Boys 2024"]
[Site "Kouty nad Desnou"]
[Date "2024.03.16"]
[Round "9.4"]
[White "Bara, Jan"]
[Black "Hladky, Mikulas"]
[Result "1/2-1/2"]
[ECO "A13"]
[WhiteElo "1852"]
[BlackElo "1798"]
[Annotator "NA RC"]
[PlyCount "98"]
[EventDate "2024.03.10"]
[EventType "swiss"]
[EventCountry "CZE"]
[SourceTitle "playchess.com"]
[Source "ChessBase"]
[SourceQuality "1"]
[TimeControl "40/5400+30:1800+30"]

1. Nf3 {[%emt 0:04:13]} Nf6 {[%emt 0:00:12]} 2. c4 {[%emt 0:00:11]} e6 {[%emt 0:00:23]} 3. g3 {[%emt 0:00:24]} d5 {[%emt 0:00:33]} 4. Bg2 {[%emt 0:00:17]} dxc4 {[%emt 0:00:34]} 5. Qa4+ {[%emt 0:00:32]} Nbd7 {[%emt 0:00:41]} 6. Qxc4 {[%emt 0:00:27]} a6 {[%emt 0:00:35]} 7. Qc2 {[%emt 0:01:24]} c5 {[%emt 0:01:37]} 8. O-O {[%emt 0:01:18]} Be7 {[%emt 0:01:48]} 9. d4 {[%emt 0:07:08]} O-O {[%emt 0:02:16]} 10. Nc3 {[%emt 0:06:04]} cxd4 {[%emt 0:04:40]} 11. Nxd4 {[%emt 0:01:22]} Nb6 {[%emt 0:06:21]} 12. Rd1 {[%emt 0:03:08]} Qc7 {[%emt 0:00:50]} 13. Ne4 {[%emt 0:20:27]} Qxc2 {[%emt 0:00:59]} 14. Nxc2 {[%emt 0:00:01]} Nfd5 {[%emt 0:01:44]} 15. Be3 {[%emt 0:06:58]} Nc4 {[%emt 0:09:07]} 16. Bd4 {[%emt 0:02:03]} Bd7 {[%emt 0:06:36]} 17. b3 {[%emt 0:02:54]} Ncb6 {[%emt 0:02:55]} 18. Nc5 {[%emt 0:04:07]} Bc6 {[%emt 0:07:04]} 19. e4 {[%emt 0:03:48]} Nc3 {[%emt 0:08:08]} 20. Bxc3 {[%emt 0:07:25]} Bxc5 {[%emt 0:00:16]} 21. Bd4 {[%emt 0:03:49]} Bxd4 {[%emt 0:00:50]} 22. Nxd4 {[%emt 0:00:19]} Rfd8 {[%emt 0:01:57]} 23. Nxc6 {[%emt 0:02:00]} bxc6 {[%emt 0:00:33]} 24. Rxd8+ {[%emt 0:01:40]} Rxd8 {[%emt 0:00:09]} 25. Rc1 {[%emt 0:00:08]} Rc8 {[%emt 0:00:15]} 26. Rc5 {[%emt 0:00:33]} Kf8 {[%emt 0:00:32]} 27. Bf1 {[%emt 0:01:39]} Nd7 {[%emt 0:00:46]} 28. Ra5 {[%emt 0:00:20]} Nb8 {[%emt 0:00:25]} 29. Bxa6 {[%emt 0:00:36]} Nxa6 {[%emt 0:00:09]} 30. Rxa6 {[%emt 0:00:02]} Rc7 {[%emt 0:01:04]} 31. Kf1 {[%emt 0:00:24]} c5 {[%emt 0:00:39]} 32. Ke2 {[%emt 0:00:29]} c4 {[%emt 0:00:18]} 33. bxc4 {[%emt 0:00:22]} Rxc4 {[%emt 0:00:04]} 34. Kd3 {[%emt 0:00:18]} Rc7 {[%emt 0:00:20]} 35. a4 {[%emt 0:02:13]} h6 {[%emt 0:01:20]} 36. h3 {[%emt 0:02:08]} Ke7 {[%emt 0:00:11]} 37. f4 {[%emt 0:00:48]} g6 {[%emt 0:01:59]} 38. g4 {[%emt 0:01:48]} Rd7+ {[%emt 0:00:27]} 39. Ke3 {[%emt 0:04:12]} Rc7 {[%emt 0:00:18]} 40. h4 {[%emt 0:03:40]} Rc3+ {[%emt 0:00:26]} 41. Kd4 {[%emt 0:30:12]} Rg3 {[%emt 0:33:27]} 42. Ra7+ {[%emt 0:00:33]} Kf8 {[%emt 0:01:17]} 43. f5 {[%emt 0:01:29]} gxf5 {[%emt 0:01:10]} 44. gxf5 {[%emt 0:00:12]} exf5 {[%emt 0:00:34]} 45. exf5 {[%emt 0:00:21]} Kg7 {[%emt 0:00:36]} 46. Ke5 {[%emt 0:03:45]} Rh3 {[%emt 0:00:28]} 47. Ra8 {[%emt 0:01:10]} Rxh4 {[%emt 0:01:29]} 48. a5 {[%emt 0:01:12]} Ra4 {[%emt 0:01:04]} 49. Ra6 {[%emt 0:01:45]} h5 {[%emt 0:00:56]} 1/2-1/2

[Event "Czech Youth U12 Boys 2024"]
[Site "Kouty nad Desnou"]
[Date "2024.03.16"]
[Round "9.5"]
[White "Kala, Jakub"]
[Black "Artamonov, Mikhail"]
[Result "1-0"]
[ECO "E92"]
[WhiteElo "1750"]
[BlackElo "1727"]
[Annotator "NA RC"]
[PlyCount "105"]
[EventDate "2024.03.10"]
[EventType "swiss"]
[EventCountry "CZE"]
[SourceTitle "playchess.com"]
[Source "ChessBase"]
[SourceQuality "1"]
[TimeControl "40/5400+30:1800+30"]

1. Nf3 {[%emt 0:00:04]} Nf6 {[%emt 0:00:16]} 2. c4 {[%emt 0:00:07]} d6 {[%emt 0:00:48]} 3. d4 {[%emt 0:01:09]} g6 {[%emt 0:01:06]} 4. Nc3 {[%emt 0:00:12]} Bg7 {[%emt 0:00:37]} 5. e4 {[%emt 0:00:21]} O-O {[%emt 0:00:22]} 6. Be2 {[%emt 0:00:13]} e5 {[%emt 0:01:09]} 7. Be3 {[%emt 0:00:59]} Ng4 {[%emt 0:00:23]} 8. Bg5 {[%emt 0:00:34]} f6 {[%emt 0:01:21]} 9. Bc1 {[%emt 0:00:32]} Nc6 {[%emt 0:01:32]} 10. d5 {[%emt 0:01:25]} Ne7 {[%emt 0:00:39]} 11. h3 {[%emt 0:03:52]} Nh6 {[%emt 0:00:20]} 12. h4 {[%emt 0:09:36]} Nf7 {[%emt 0:03:52]} 13. h5 {[%emt 0:05:13]} g5 {[%emt 0:03:48]} 14. Be3 {[%emt 0:03:56]} h6 {[%emt 0:01:13]} 15. Nd2 {[%emt 0:05:18]} f5 {[%emt 0:02:00]} 16. f3 {[%emt 0:01:35]} f4 {[%emt 0:04:53]} 17. Bf2 {[%emt 0:02:08]} a6 {[%emt 0:04:14]} 18. b4 {[%emt 0:03:34]} Bd7 {[%emt 0:03:46]} 19. Qb3 {[%emt 0:07:03]} c6 {[%emt 0:01:37]} 20. c5 {[%emt 0:12:53]} cxd5 {[%emt 0:02:53]} 21. Nxd5 {[%emt 0:02:35]} Nc6 {[%emt 0:00:42]} 22. cxd6 {[%emt 0:03:20]} Kh8 {[%emt 0:05:17]} 23. Bb6 {[%emt 0:01:42]} Nd4 {[%emt 0:04:27]} 24. Qd1 {[%emt 0:06:14]} Qc8 {[%emt 0:01:31]} 25. Rc1 {[%emt 0:01:09]} Bc6 {[%emt 0:00:25]} 26. Ne7 {[%emt 0:01:59]} Qd7 {[%emt 0:01:08]} 27. Ng6+ {[%emt 0:00:42]} Kh7 {[%emt 0:02:15]} 28. Nxf8+ {[%emt 0:00:38]} Rxf8 {[%emt 0:00:26]} 29. Bxd4 {[%emt 0:03:30]} exd4 30. Qc2 {[%emt 0:01:34]} Kh8 {[%emt 0:02:24]} 31. Nc4 {[%emt 0:02:11]} Bb5 {[%emt 0:05:37]} 32. Kf2 {[%emt 0:06:47]} Rc8 {[%emt 0:05:52]} 33. Qb3 {[%emt 0:00:52]} Rd8 {[%emt 0:06:46]} 34. Nb6 {[%emt 0:02:57]} Qxd6 {[%emt 0:01:03]} 35. Bxb5 {[%emt 0:00:30]} Qxb6 {[%emt 0:05:20]} 36. Bd3 {[%emt 0:02:38]} Ne5 {[%emt 0:00:13]} 37. a3 {[%emt 0:01:23]} a5 {[%emt 0:04:55]} 38. Rc5 {[%emt 0:02:24]} axb4 {[%emt 0:00:26]} 39. Rb5 {[%emt 0:01:37]} Qc6 {[%emt 0:01:08]} 40. axb4 {[%emt 0:00:52]} Qc3 {[%emt 0:00:54]} 41. Qxc3 {[%emt 0:30:56]} dxc3 {[%emt 0:30:06]} 42. Be2 {[%emt 0:01:18]} Rd2 {[%emt 0:01:21]} 43. Rd5 {[%emt 0:00:21]} Rb2 {[%emt 0:02:36]} 44. b5 {[%emt 0:01:07]} Nc4 {[%emt 0:01:27]} 45. Rd8+ {[%emt 0:01:47]} Kh7 {[%emt 0:00:24]} 46. Rc1 {[%emt 0:00:27]} Ne3 {[%emt 0:00:59]} 47. Rd7 {[%emt 0:00:43]} c2 {[%emt 0:00:59]} 48. Bd3 {[%emt 0:00:26]} Rb1 {[%emt 0:02:13]} 49. Rxb1 {[%emt 0:00:00]} cxb1=Q {[%emt 0:00:00]} 50. Bxb1 {[%emt 0:00:00]} Kg8 {[%emt 0:00:10]} 51. Rxb7 {[%emt 0:00:00]} Nd1+ {[%emt 0:00:22]} 52. Ke1 {[%emt 0:00:00]} Nc3 {[%emt 0:00:18]} 53. Bc2 {[%emt 0:00:00]} 1-0

[Event "Czech Youth U12 Boys 2024"]
[Site "Kouty nad Desnou"]
[Date "2024.03.16"]
[Round "9.6"]
[White "Gresek, Oskar"]
[Black "Sotek, Matej"]
[Result "0-1"]
[ECO "B13"]
[WhiteElo "1629"]
[BlackElo "1716"]
[Annotator "NA RC"]
[PlyCount "140"]
[EventDate "2024.03.10"]
[EventType "swiss"]
[EventCountry "CZE"]
[SourceTitle "playchess.com"]
[Source "ChessBase"]
[SourceQuality "1"]
[TimeControl "40/5400+30:1800+30"]

1. e4 {[%emt 0:00:05]} c6 {[%emt 0:00:21]} 2. d4 {[%emt 0:00:20]} d5 {[%emt 0:00:32]} 3. exd5 {[%emt 0:00:38]} cxd5 {[%emt 0:00:32]} 4. Nf3 {[%emt 0:01:07]} Bg4 {[%emt 0:00:42]} 5. Bd3 {[%emt 0:01:20]} Nc6 {[%emt 0:01:10]} 6. c3 {[%emt 0:00:50]} e6 {[%emt 0:01:12]} 7. O-O {[%emt 0:02:29]} Nf6 {[%emt 0:00:34]} 8. Bg5 h6 {[%emt 0:01:01]} 9. Bxf6 {[%emt 0:01:34]} Qxf6 {[%emt 0:01:06]} 10. Nbd2 {[%emt 0:00:40]} Bd6 {[%emt 0:00:56]} 11. Re1 {[%emt 0:05:32]} O-O {[%emt 0:01:06]} 12. h3 {[%emt 0:08:18]} Bxf3 {[%emt 0:02:42]} 13. Nxf3 {[%emt 0:00:44]} Rac8 {[%emt 0:00:50]} 14. Rc1 {[%emt 0:01:50]} Rc7 {[%emt 0:02:47]} 15. Qe2 {[%emt 0:07:32]} Rfc8 {[%emt 0:00:59]} 16. Ra1 {[%emt 0:01:31]} a6 {[%emt 0:01:24]} 17. Kh1 {[%emt 0:15:27]} Na5 {[%emt 0:04:22]} 18. Kg1 {[%emt 0:10:04]} Nc4 {[%emt 0:01:38]} 19. Bxc4 {[%emt 0:01:12]} Rxc4 {[%emt 0:00:25]} 20. Ne5 {[%emt 0:00:33]} Bxe5 {[%emt 0:00:27]} 21. Qxe5 {[%emt 0:00:14]} Qxe5 {[%emt 0:01:08]} 22. Rxe5 {[%emt 0:04:29]} b5 {[%emt 0:01:02]} 23. a3 {[%emt 0:01:27]} a5 {[%emt 0:00:44]} 24. Re3 {[%emt 0:04:16]} Kf8 {[%emt 0:06:03]} 25. Kf1 {[%emt 0:03:54]} Ke7 {[%emt 0:07:32]} 26. Ke2 {[%emt 0:02:17]} Kd8 {[%emt 0:03:00]} 27. Kd2 {[%emt 0:06:05]} R4c7 {[%emt 0:04:46]} 28. f4 {[%emt 0:02:33]} Kd7 {[%emt 0:03:49]} 29. f5 {[%emt 0:04:13]} exf5 {[%emt 0:09:04]} 30. Re5 {[%emt 0:00:35]} Kd6 {[%emt 0:00:15]} 31. Rxf5 {[%emt 0:01:22]} f6 {[%emt 0:00:14]} 32. Rf3 {[%emt 0:01:20]} Re8 {[%emt 0:03:00]} 33. Re3 {[%emt 0:00:49]} Rxe3 {[%emt 0:01:23]} 34. Kxe3 {[%emt 0:00:06]} Re7+ {[%emt 0:00:05]} 35. Kd3 {[%emt 0:01:17]} a4 {[%emt 0:02:07]} 36. Rb1 {[%emt 0:00:59]} Kc6 {[%emt 0:01:29]} 37. Rf1 {[%emt 0:01:32]} Re4 {[%emt 0:02:20]} 38. Kd2 {[%emt 0:00:55]} Re7 {[%emt 0:00:47]} 39. Kd3 {[%emt 0:01:30]} Kd6 {[%emt 0:00:23]} 40. Kd2 {[%emt 0:01:15]} Re6 {[%emt 0:00:47]} 41. Rb1 {[%emt 0:31:21]} f5 {[%emt 0:31:12]} 42. Rf1 {[%emt 0:01:45]} g6 {[%emt 0:01:03]} 43. Rb1 {[%emt 0:00:17]} f4 {[%emt 0:02:22]} 44. b3 {[%emt 0:01:58]} axb3 {[%emt 0:00:47]} 45. Rxb3 {[%emt 0:00:07]} Kc6 {[%emt 0:00:17]} 46. Rb4 {[%emt 0:01:00]} Re3 {[%emt 0:01:04]} 47. a4 {[%emt 0:00:13]} bxa4 {[%emt 0:00:19]} 48. Rxa4 {[%emt 0:00:07]} Rg3 {[%emt 0:00:30]} 49. Ra6+ {[%emt 0:00:33]} Kd7 {[%emt 0:01:23]} 50. Ra7+ {[%emt 0:02:09]} Ke6 {[%emt 0:00:24]} 51. Ra6+ {[%emt 0:00:21]} Kf5 {[%emt 0:00:10]} 52. Rd6 {[%emt 0:00:44]} Rxg2+ {[%emt 0:01:03]} 53. Ke1 {[%emt 0:00:16]} Ke4 {[%emt 0:03:30]} 54. Re6+ Kd3 {[%emt 0:01:03]} 55. Rd6 {[%emt 0:02:42]} Rg5 {[%emt 0:09:35]} 56. Rf6 {[%emt 0:01:28]} Kxc3 {[%emt 0:00:39]} 57. Rxf4 {[%emt 0:00:09]} Rf5 {[%emt 0:00:15]} 58. Rg4 {[%emt 0:00:41]} g5 {[%emt 0:00:20]} 59. Ke2 {[%emt 0:00:35]} Rf4 {[%emt 0:00:26]} 60. Rg3+ {[%emt 0:00:32]} Kxd4 {[%emt 0:00:09]} 61. Ra3 {[%emt 0:00:27]} Ke5 {[%emt 0:01:04]} 62. Ra6 {[%emt 0:00:14]} Rf6 {[%emt 0:00:51]} 63. Ra3 {[%emt 0:00:14]} d4 {[%emt 0:00:20]} 64. Ra5+ {[%emt 0:00:33]} Ke4 {[%emt 0:00:15]} 65. Ra3 {[%emt 0:00:26]} Rb6 {[%emt 0:00:44]} 66. Ra8 {[%emt 0:00:19]} Rb2+ {[%emt 0:00:40]} 67. Ke1 {[%emt 0:00:16]} Rh2 {[%emt 0:01:11]} 68. Re8+ {[%emt 0:00:18]} Kf3 {[%emt 0:01:00]} 69. Rd8 {[%emt 0:00:17]} Rxh3 {[%emt 0:00:18]} 70. Rxd4 {[%emt 0:00:10]} Ke3 {[%emt 0:00:07]} 0-1

[Event "Czech Youth U12 Boys 2024"]
[Site "Kouty nad Desnou"]
[Date "2024.03.16"]
[Round "9.7"]
[White "Kroulik, Stepan"]
[Black "Sudrich, Radek"]
[Result "1-0"]
[ECO "B83"]
[WhiteElo "1683"]
[BlackElo "1998"]
[Annotator "NA RC"]
[PlyCount "37"]
[EventDate "2024.03.10"]
[EventType "swiss"]
[EventCountry "CZE"]
[SourceTitle "playchess.com"]
[Source "ChessBase"]
[SourceQuality "1"]
[TimeControl "40/5400+30:1800+30"]

1. e4 {[%emt 0:00:11]} c5 {[%emt 0:00:24]} 2. Nc3 {[%emt 0:00:11]} e6 {[%emt 0:00:42]} 3. Nf3 {[%emt 0:00:21]} Nc6 {[%emt 0:00:56]} 4. Be2 {[%emt 0:00:44]} Be7 {[%emt 0:00:46]} 5. O-O {[%emt 0:00:47]} d6 {[%emt 0:00:25]} 6. d4 {[%emt 0:03:15]} cxd4 {[%emt 0:00:09]} 7. Nxd4 {[%emt 0:00:07]} Nf6 {[%emt 0:01:06]} 8. Be3 {[%emt 0:01:10]} O-O {[%emt 0:00:58]} 9. f4 {[%emt 0:00:49]} a6 {[%emt 0:03:51]} 10. Qe1 {[%emt 0:03:56]} Qb6 {[%emt 0:00:45]} 11. Nf5 {[%emt 0:09:49]} Qc7 {[%emt 0:06:00]} 12. Nxe7+ {[%emt 0:02:28]} Qxe7 {[%emt 0:00:11]} 13. Qg3 {[%emt 0:03:22]} d5 {[%emt 0:00:43]} 14. f5 {[%emt 0:15:09]} Nxe4 {[%emt 0:02:01]} 15. Nxe4 {[%emt 0:00:19]} dxe4 {[%emt 0:00:05]} 16. f6 {[%emt 0:00:27]} g6 {[%emt 0:01:07]} 17. fxe7 {[%emt 0:00:26]} Nxe7 {[%emt 0:00:07]} 18. Bc5 {[%emt 0:00:46]} Nf5 {[%emt 0:00:37]} 19. Rxf5 {[%emt 0:00:29]} 1-0

[Event "Czech Youth U12 Boys 2024"]
[Site "Kouty nad Desnou"]
[Date "2024.03.16"]
[Round "9.8"]
[White "Fadrny, Jachym"]
[Black "Sochor, Antonin"]
[Result "0-1"]
[ECO "B07"]
[WhiteElo "1729"]
[BlackElo "1779"]
[Annotator "NA RC"]
[PlyCount "57"]
[EventDate "2024.03.10"]
[EventType "swiss"]
[EventCountry "CZE"]
[SourceTitle "playchess.com"]
[Source "ChessBase"]
[SourceQuality "1"]
[TimeControl "40/5400+30:1800+30"]

1. e4 {[%emt 0:00:05]} d6 {[%emt 0:00:15]} 2. d4 {[%emt 0:00:15]} Nf6 {[%emt 0:00:16]} 3. Nc3 {[%emt 0:00:25]} Nbd7 {[%emt 0:00:24]} 4. Nf3 {[%emt 0:00:24]} e5 {[%emt 0:00:20]} 5. Bc4 {[%emt 0:02:22]} h6 {[%emt 0:00:41]} 6. O-O {[%emt 0:03:32]} Be7 {[%emt 0:01:04]} 7. Re1 {[%emt 0:03:45]} c6 {[%emt 0:03:10]} 8. a4 {[%emt 0:03:14]} O-O {[%emt 0:03:26]} 9. Be3 {[%emt 0:01:44]} Qc7 {[%emt 0:03:27]} 10. Bb3 {[%emt 0:03:37]} b6 {[%emt 0:03:33]} 11. Qd3 {[%emt 0:06:48]} a6 {[%emt 0:05:46]} 12. Nh4 {[%emt 0:11:22]} Kh7 {[%emt 0:12:03]} 13. Nf5 {[%emt 0:01:57]} Qd8 {[%emt 0:07:39]} 14. Rad1 {[%emt 0:02:22]} b5 {[%emt 0:06:11]} 15. d5 {[%emt 0:08:20]} c5 {[%emt 0:08:03]} 16. axb5 {[%emt 0:02:31]} axb5 {[%emt 0:04:48]} 17. Nxb5 {[%emt 0:04:58]} Nb6 {[%emt 0:08:34]} 18. Ng3 {[%emt 0:14:26]} Ng4 {[%emt 0:08:10]} 19. Na3 {[%emt 0:17:43]} Nxe3 {[%emt 0:05:04]} 20. Qxe3 {[%emt 0:00:32]} Bg5 {[%emt 0:01:10]} 21. Qd3 {[%emt 0:03:31]} g6 {[%emt 0:01:44]} 22. Ne2 {[%emt 0:05:30]} f5 {[%emt 0:01:40]} 23. f3 {[%emt 0:01:03]} f4 {[%emt 0:01:53]} 24. Nc1 {[%emt 0:01:16]} Bh4 {[%emt 0:02:24]} 25. Re2 {[%emt 0:00:14]} g5 {[%emt 0:01:41]} 26. c4 {[%emt 0:00:51]} g4 {[%emt 0:01:14]} 27. Rdd2 {[%emt 0:00:33]} Rg8 {[%emt 0:00:38]} 28. Kf1 {[%emt 0:00:36]} gxf3 {[%emt 0:00:48]} 29. Qxf3 0-1

[Event "Czech Youth U12 Boys 2024"]
[Site "Kouty nad Desnou"]
[Date "2024.03.16"]
[Round "9.9"]
[White "Novotny, Adam"]
[Black "Havlik, David"]
[Result "0-1"]
[ECO "B40"]
[WhiteElo "2072"]
[BlackElo "1580"]
[Annotator "NA RC"]
[PlyCount "52"]
[EventDate "2024.03.10"]
[EventType "swiss"]
[EventCountry "CZE"]
[SourceTitle "playchess.com"]
[Source "ChessBase"]
[SourceQuality "1"]
[TimeControl "40/5400+30:1800+30"]

1. e4 {[%emt 0:00:21]} c5 {[%emt 0:00:04]} 2. Nf3 {[%emt 0:00:35]} e6 {[%emt 0:00:05]} 3. d4 {[%emt 0:00:40]} cxd4 {[%emt 0:00:02]} 4. Nxd4 {[%emt 0:00:30]} Nf6 {[%emt 0:00:05]} 5. Nc3 {[%emt 0:01:27]} Nc6 {[%emt 0:00:05]} 6. Be3 {[%emt 0:01:32]} Bb4 {[%emt 0:00:04]} 7. Bd3 {[%emt 0:01:58]} d5 {[%emt 0:00:29]} 8. f3 {[%emt 0:09:26]} O-O {[%emt 0:02:13]} 9. O-O {[%emt 0:02:28]} Bc5 {[%emt 0:01:16]} 10. Bb5 {[%emt 0:06:11]} e5 {[%emt 0:01:41]} 11. Nf5 {[%emt 0:15:39]} Bxe3+ {[%emt 0:03:13]} 12. Nxe3 {[%emt 0:03:05]} d4 {[%emt 0:00:12]} 13. Bxc6 {[%emt 0:02:50]} bxc6 {[%emt 0:00:13]} 14. Qe2 {[%emt 0:01:33]} dxc3 {[%emt 0:01:03]} 15. bxc3 {[%emt 0:00:22]} Nh5 {[%emt 0:02:48]} 16. Rfd1 {[%emt 0:02:30]} Qg5 {[%emt 0:02:15]} 17. g3 {[%emt 0:01:20]} f5 {[%emt 0:04:28]} 18. exf5 {[%emt 0:02:54]} Bxf5 {[%emt 0:00:21]} 19. Nxf5 {[%emt 0:03:44]} Rxf5 {[%emt 0:00:55]} 20. g4 {[%emt 0:00:39]} Nf4 {[%emt 0:00:54]} 21. Qc4+ {[%emt 0:00:33]} Kh8 {[%emt 0:00:40]} 22. Qxc6 {[%emt 0:01:08]} Raf8 {[%emt 0:02:11]} 23. Qa6 {[%emt 0:05:50]} Nh3+ {[%emt 0:01:27]} 24. Kg2 {[%emt 0:04:10]} Rxf3 {[%emt 0:00:31]} 25. Qc4 {[%emt 0:01:37]} R3f4 26. Qd3 {[%emt 0:03:36]} Rxg4+ {[%emt 0:04:04]} 0-1